{"text_format":"1","workbook":"xlsx","n_sheets":6,"sheets":["Program Activities (non-4-H)","Program Activities (4-H)","Direct Contacts","Indirect Activities","Quarterly Efforts","Source Lists"],"not_rendered":{"charts":0,"images":0,"macros":1,"external_links":0,"defined_names":0,"comments":0,"pivot_tables":0},"unopened":[],"bounds":{"document_bytes":16777216,"sheet_cells":100000,"rows_first":2000,"rows_last":500,"rows_between":2000,"halvings":0,"cell_chars":16384,"cell_head_chars":4096},"cells_cut":0,"cells_raw":0,"read":"whole","date_system":"1900"}

{"sheet":"Program Activities (non-4-H)","index":0,"n_rows":104,"n_cols":6,"rows_kept":104,"cut":false,"hidden":false,"merged":[]}
["Program Activities (Non- 4-H)"]
[]
["Reporting Title:"]
["Format: [Program name]-[Topic]- [Add anything else you might need to identify your specific program (like location, classroom teacher name, day of the week, etc.] "]
["Ex: Jams & Jelly Canning Workshop - Food Preservation"]
["Ex: Pesticide Applicator Training-Restricted Use Pesticide License Certification"]
[]
[]
["Program Areas (Select from list)"]
["Select more than one if applicable"]
[]
["Has Youth Programming (If yes, complete the Program Activities (for YOUTH) Sheet)",null,null,null,null,"`"]
[]
[]
["Delivery Method"]
[]
[]
["Sessions completed with the SAME AUDIENCE ","Date","Start Time","Length (in minutes)","# Participants","Virtual (Yes/No)"]
[]
[]
[]
[]
[]
[]
[]
[]
[]
[]
["Delivery Site (Location)"]
["Ex: Building name (County Name), Street Address, City, State ZIP Code"]
[]
[]
["Unit (County/Statewide) (Will auto-populate from unit assigned - change as needed)"]
[]
[]
["Language(s)s used to deliver this program"]
[]
[]
["Number of Volunteers"]
[]
[]
["Total Volunteer Hours"]
[]
[]
["Comments"]
[]
[]
["Collaborators & Roles (Should be completed for each collaborator - even yourself) ","Collaborator Name (only your name unless you need someone else to access the report/they contributed to the work)","Role (Ex: Led training, managed registration, created presentation, etc.) "]
[]
[]
[]
[]
[]
[]
[]
[]
[]
[]
[]
[]
[]
[]
[]
[]
[]
["Methods of Contact"]
[]
[]
["Was an evaluation completed for this program activity?"]
["If yes, please maintain documents/records of results seperately for reporting purposes."]
[]
["Demographics","Method used to determine demographic makeup of participants"]
[]
[]
[null,"Source of Data",null,"If Other: "]
[]
[]
[null,"Gender","# of participants",null,"Age","# of participants"]
[null,"Female",null,null,"Less than 5 years"]
[null,"Male",null,null,"5-17 years"]
[null,"Non-Binary",null,null,"Total youth"]
[null,"Prefer Not to Respond",null,null,"18-29 years"]
[null,"Unknown",null,null,"30-59 years"]
[null,"Total",{"$f":"SUBTOTAL(109,Table4['# of participants])","v":0},null,"60-75 years"]
[null,null,null,null,"76 or older"]
[null,"Ethnicity","# of participants",null,"Total Adults"]
[null,"Hispanic/Latino",null,null,"Prefer not to respond"]
[null,"Non-Hispanic/Latino",null,null,"Unknown"]
[null,"Prefer not to respond",null,null,"Total",{"$f":"SUBTOTAL(109,Table3['# of participants])","v":0}]
[null,"Unknown"]
[null,"Total",{"$f":"SUBTOTAL(109,Table5['# of participants])","v":0}]
[]
[null,"Race","One Race Only","2 Or More Races"]
[null,"American Indian or Alaska Native"]
[null,"Asian"]
[null,"Black or African American"]
[null,"Native Hawaiian/Other Pacific Islander"]
[null,"White"]
[null,"Prefer not to respond"]
[null,"Unknown"]
[null,"Total",{"$f":"SUBTOTAL(109,Table13[One Race Only])","v":0},{"$f":"SUBTOTAL(109,Table13[2 Or More Races])","v":0}]
[]
[null,"# Unique participants with one race only",{"$f":"Table13[[#Totals],[One Race Only]]","v":0}]
[null,"# Unique participants with 2 or more races",{"$f":"Table13[[#Totals],[2 Or More Races]]","v":0}]

{"sheet":"Program Activities (4-H)","index":1,"n_rows":159,"n_cols":6,"rows_kept":159,"cut":false,"hidden":false,"merged":[]}
["Program Activities (4-H Youth Programming)"]
[]
["Reporting Title:"]
["Format: [Program name]-[Topic]- [Add anything else you might need to identify your specific program (like location, classroom teacher name, day of the week, etc.] "]
["Ex: 4-H - O-Rama"]
[]
[]
[]
["Program Areas"]
["Select more than one if applicable"]
[]
["Delivery Method"]
[]
[]
["Sessions completed with the SAME AUDIENCE","Date","Start Time","Length","# Participants","Virtual"]
[]
[]
[]
[]
[]
[]
[]
[]
[]
[]
["Delivery Site (Location)"]
["Ex: Building name (County Name), Street Address, City, State ZIP Code"]
[]
[]
["Unit (County/Statewide) (Will auto-populate from unit assigned - change as needed)"]
[]
[]
["Language(s)s used to deliver this program"]
[]
[]
["Number of Volunteers"]
[]
[]
["Total Volunteer Hours"]
[]
[]
["Comments"]
[]
[]
["Collaborators & Roles (Should be completed for each collaborator - even yourself) ","Collaborator Name (only your name unless you need someone else to access the report/they contributed to the work)","Role (Ex: Led training, managed registration, created presentation, etc.) "]
[]
[]
[]
[]
[]
[]
[]
[]
[]
[]
[]
[]
[]
[]
[]
[]
[]
["Methods of Contact"]
[]
[]
["Was an evaluation completed for this program activity?"]
["If yes, please maintain documents/records of results seperately for reporting purposes."]
[]
["YOUTH PROGRAMMING FIELDS","Youth Programming delivery mode"]
[]
[]
[null,"Project Areas"]
[]
[]
[null,"Number of Adult Volunteers",null,null,"Number of Youth Volunteers"]
[]
[]
[null,"Number of youth from military families (if known)"]
[]
[]
["4-H Enrollment Status & Service (YOUTH DEMOGRAPHICS)","4-H Enrollment Status and Service - Enrollment","# of participants"]
[null,"Currently Enrolled"]
[null,"Not Enrolled"]
[null,"Total",{"$f":"SUBTOTAL(109,Table11535['# of participants])","v":0}]
[]
[null,"4-H Enrollment Status and Service - Service","# of participants"]
[null,"First Served"]
[null,"Previously Served"]
[null,"Total",{"$f":"SUBTOTAL(109,Table1151636['# of participants])","v":0}]
[]
[null,"Gender - Youth","# of participants",null,"Grade Distribution","# of participants"]
[null,"Female",null,null,"Pre-K"]
[null,"Male",null,null,"Kindergarten"]
[null,"Non-Binary",null,null,"1st Grade"]
[null,"Prefer Not to Respond",null,null,"2nd Grade"]
[null,"Unknown",null,null,"3rd Grade"]
[null,"Total",{"$f":"SUBTOTAL(109,Table42237['# of participants])","v":0},null,"4th Grade"]
[null,null,null,null,"5th Grade"]
[null,"Ethnicity - Youth","# of participants",null,"6th Grade"]
[null,"Hispanic/Latino",null,null,"7th Grade"]
[null,"Non-Hispanic/Latino",null,null,"8th Grade"]
[null,"Prefer not to respond",null,null,"9th Grade"]
[null,"Unknown",null,null,"10th Grade"]
[null,"Total",{"$f":"SUBTOTAL(109,Table52538['# of participants])","v":0},null,"11th Grade"]
[null,null,null,null,"12th Grade"]
[null,"Residence Distribution - Youth","# of participants",null,"Post High School"]
[null,"Farm",null,null,"Not in School"]
[null,"Rural (Under 10,000)",null,null,"Special Education"]
[null,"Town (10,000 - 50,000)",null,null,"Unknown "]
[null,"Suburb of Cities (<50,000)",null,null,"Total",{"$f":"SUBTOTAL(109,Table229['# of participants])","v":0}]
[null,"Central cities (>50,000)"]
[null,"Unknown "]
[null,"Total",{"$f":"SUBTOTAL(109,Table128['# of participants])","v":0}]
[]
[null,"Race - Youth","One Race Only"]
[null,"American Indian or Alaska Native"]
[null,"Asian"]
[null,"Black or African American"]
[null,"Native Hawaiian/Other Pacific Islander"]
[null,"White"]
[null,"Prefer not to respond"]
[null,"Unknown"]
[null,"Two or More Races"]
[null,"Total",{"$f":"SUBTOTAL(109,Table2639[One Race Only])","v":0}]
[]
[]
["Demographics (Adults)","Method used to determine demographic makeup of participants"]
[]
[]
[null,"Source of Data",null,"If Other: "]
[]
[]
[null,"Gender - Adults","# of participants",null,"Age","# of participants"]
[null,"Female",null,null,"Less than 5 years"]
[null,"Male",null,null,"5-17 years"]
[null,"Non-Binary",null,null,"Total youth"]
[null,"Prefer Not to Respond",null,null,"18-29 years"]
[null,"Unknown",null,null,"30-59 years"]
[null,"Total",{"$f":"SUBTOTAL(109,Table430['# of participants])","v":0},null,"60-75 years"]
[null,null,null,null,"76 or older"]
[null,"Ethnicity - Adults","# of participants",null,"Total Adults"]
[null,"Hispanic/Latino",null,null,"Prefer not to respond"]
[null,"Non-Hispanic/Latino",null,null,"Unknown"]
[null,"Prefer not to respond",null,null,"Total",{"$f":"SUBTOTAL(109,Table315['# of participants])","v":0}]
[null,"Unknown"]
[null,"Total",{"$f":"SUBTOTAL(109,Table531['# of participants])","v":0}]
[]
[null,"Race - Adults","One Race Only","2 Or More Races"]
[null,"American Indian or Alaska Native"]
[null,"Asian"]
[null,"Black or African American"]
[null,"Native Hawaiian/Other Pacific Islander"]
[null,"White"]
[null,"Prefer not to respond"]
[null,"Unknown"]
[null,"Total",{"$f":"SUBTOTAL(109,Table1333[One Race Only])","v":0},{"$f":"SUBTOTAL(109,Table1333[2 Or More Races])","v":0}]
[]
[null,"# Unique participants with one race only",{"$f":"Table1333[[#Totals],[One Race Only]]","v":0}]
[null,"# Unique participants with 2 or more races",{"$f":"Table1333[[#Totals],[2 Or More Races]]","v":0}]

{"sheet":"Direct Contacts","index":2,"n_rows":57,"n_cols":7,"rows_kept":57,"cut":false,"hidden":false,"merged":[]}
["Direct Contacts"]
[]
["Unit (County/Statewide)"]
[]
[]
["Program Areas"]
["Select more than one if applicable"]
[]
[]
["Activity Date Range"]
[]
[]
["Comments"]
[]
[]
["Communication Methods","Communication Methods","# of contacts per method"]
[null,"Email"]
[null,"In Person"]
[null,"Phone"]
[null,"Social Media"]
[null,"Text"]
[null,"Video Conference"]
[null,"Other"]
[null,"Total",{"$f":"SUBTOTAL(109,Table32326['# of contacts per method])","v":0}]
[]
[]
["Demographics","Method used to determine demographic makeup of participants"]
[]
[]
[null,"Gender","# of participants"]
[null,"Female"]
[null,"Male"]
[null,"Non-Binary"]
[null,"Prefer Not to Respond"]
[null,"Unknown"]
[null,"Total",{"$f":"SUBTOTAL(109,Table424['# of participants])","v":0}]
[]
[null,"Ethnicity","# of participants"]
[null,"Hispanic/Latino"]
[null,"Non-Hispanic/Latino"]
[null,"Prefer not to respond"]
[null,"Unknown"]
[null,"Total",{"$f":"SUBTOTAL(109,Table521['# of participants])","v":0}]
[]
[]
[null,"Race","One Race Only","2 Or More Races",null,"Age","# of participants"]
[null,"American Indian or Alaska Native",null,null,null,"Less than 5 years"]
[null,"Asian",null,null,null,"5-17 years"]
[null,"Black or African American",null,null,null,"Total youth"]
[null,"Native Hawaiian/Other Pacific Islander",null,null,null,"18-29 years"]
[null,"White",null,null,null,"30-59 years"]
[null,"Prefer not to respond",null,null,null,"60-75 years"]
[null,"Unknown",null,null,null,"76 or older"]
[null,"Total",{"$f":"SUBTOTAL(109,Table1322[One Race Only])","v":0},{"$f":"SUBTOTAL(109,Table1322[2 Or More Races])","v":0},null,"Total Adults"]
[null,null,null,null,null,"Prefer not to respond"]
[null,"# Unique participants with one race only",{"$f":"Table1322[[#Totals],[One Race Only]]","v":0},null,null,"Unknown"]
[null,"# Unique participants with 2 or more races",{"$f":"Table1322[[#Totals],[2 Or More Races]]","v":0},null,null,"Total",{"$f":"SUBTOTAL(109,Table323['# of participants])","v":0}]

{"sheet":"Indirect Activities","index":3,"n_rows":40,"n_cols":6,"rows_kept":40,"cut":false,"hidden":false,"merged":[]}
["Indirect Activities"]
[]
["Reporting Title:"]
["Format: [Program name]-[Topic]"]
["Ex: ServSafe-Food Safety"]
[]
["Program Areas"]
["Select more than one if applicable"]
[]
["Unit (County/Statewide)"]
[]
[]
["Activity Date Range"]
[]
[]
["Language(s) used to deliver this program"]
[]
[]
["Comments"]
[]
[]
["Collaborators & Roles (Should be completed for each collaborator - even yourself) ","Collaborator Name (only your name unless you need someone else to access the report/they contributed to the work)","Role (Ex: Led training, managed registration, created presentation, etc.) "]
[]
[]
[]
[]
[]
[]
[]
[]
[]
[]
[]
[]
[]
[]
[]
[]
[]
["Intervention Channels","Intervention Channel","Description","Estimated # of Unique Individuals reached","Source of Reach Data","Reach of Data if \"other\""]

{"sheet":"Quarterly Efforts","index":4,"n_rows":26,"n_cols":6,"rows_kept":26,"cut":false,"hidden":false,"merged":[]}
["Quarterly Efforts"]
[]
["Reporting Period","October 01, 2025 - September 30, 2026"]
[]
[]
["Quarter"]
[]
[]
["Program Areas (Select from list)"]
["Select more than one if applicable"]
[]
["Cooperative Extension appoinment (In FTE 0.0 - 1.0) "]
["For example, report 1.0 if you are 100% Extension, 0.75 if you are 75%, etc."]
[]
["Critical Issue Total Effort","Critical Issue","Effort % "]
["For reference: https://www.uada.edu/about/strategic-plan/","Preparing the Workforce"]
[null,"Enhancing Resilience and Sustainability"]
[null,"Helping Communities Thrive"]
[null,"Advancing Innovation"]
[null,"Supporting a Healthier Arkansas"]
[null,"Total (Should = 100)",{"$f":"SUBTOTAL(109,Table42[Effort % ])","v":0}]
[]
[null,"Project Name","Project Description","This project was part of MULTI-STATE PROGRAMMING","This project was part of INTEGRATED PROGRAMMING","Hours spent working on project"]
["Multi-State Programming (Any effort in which you worked with an agricultural experiment station, the Agricultural Research Service, or a college or university from another state to solve problems that concern more than one state)"]
[]
["Integrated Programming (Programming that is integrated with institutional research. It would include any research effort or partnership with the state’s Agricultural Research service, agricultural experiment stations within the state, or agricultural departments on campus. This may also include research work that seeks to develop and improve the welfare of consumers)"]

{"sheet":"Source Lists","index":5,"n_rows":77,"n_cols":25,"rows_kept":77,"cut":false,"hidden":true,"merged":[]}
["Counties",null,"Type of Action",null,"Program Areas",null,"Delivery methods",null,"Method used to determine demographic makeup of participants ",null,"Demographics: Source of Data",null,"Youth programming delivery mode",null,"Youth programming project areas",null,"Intervention Channels",null,"Quarter",null,"Source of Reach Data",null,"Activity Date Range",null,"Methods of Contacts"]
["Arkansas",null,"Educational sessions, demonstrations, workshops, and web-based instruction (Program Activity)",null,"ANR - Agri Business Economics, Polixies, and Laws",null,"In person",null,"Actual Count",null,"Commercial market data on audience size",null,"4-H Day Camping Program",null,"Animal Science",null,"Articles",null,"Oct - Dec",null,"Commercial market data on audience size",null,"2025-10-01",null,"Demonstrations"]
["Ashley",null,"Email, in-person contacts, phone, text, video conference, social media comments (Direct Contact)",null,"ANR - Animal and Apiculture Health and Production",null,"Virtual, live online",null,"Estimated Count",null,"Survey of target audience",null,"4-H Overnight Camping Program",null,"Outdoor Skills",null,"Billboards, bus/van wraps, or other signage",null,"Jan - Mar",null,"Survey of target audience",null,"2025-11-01",null,"Educational Classes"]
["Baxter",null,"Other interaction with no currculum or direct education being shared Ex: booth at a festival (Indirect Contacts)",null,"ANR - Broad Program Areas",null,"Virtual, self-directed & interactive",null,"Unknown",null,"Site-provided demographics",null,"4-H School Enrichment Program",null,"Science, Technology, Engineering, Math (STEM)",null,"Calendars",null,null,null,"Visual estimate",null,"2025-12-01",null,"Field Day/Tour/Camp"]
["Benton",null,"Time (Quarterly Efforts)",null,"ANR - Food Products: Processing, Safety, Sanitation, and Process Controls",null,null,null,null,null,"Other (If other, please list in the next column)",null,"4-H Special Interest/Short Term Program",null,"Healthy Living",null,"Community events / fairs - in which participated",null,null,null,"Site-provided demographics",null,"2026-01-01",null,"Group Meeting"]
["Boone",null,null,null,"ANR - Forage and Turfgrass Protection and Production",null,null,null,null,null,null,null,"After-school Programs Using 4-H Curricula/Staff Training",null,"Civic Engagement",null,"Community events / fairs - only sponsored",null,null,null,"Other - Specify",null,"2026-02-01",null,"Train-the-Trainer Workshop"]
["Bradley",null,null,null,"ANR - Fruit, Vegetable, and Ornamental Crop Protection and Production",null,null,null,null,null,null,null,"Organized 4-H Club",null,null,null,"Electronic materials (e.g. email and electronic newsletters or mailings / text messaging)",null,null,null,null,null,"2026-03-01",null,"Web-Based Instruction/Education"]
["Calhoun",null,null,null,"ANR - Personnel Safety in Farm and Agriculture Industries",null,null,null,null,null,null,null,"Virtual 4-H Program",null,null,null,"Fact sheet",null,null,null,null,null,null,null,"Workshop"]
["Carroll",null,null,null,"ANR - RREA Capacity Program (Forest Resource Center)",null,null,null,null,null,null,null,null,null,null,null,"Hardcopy materials (e.g., calendars, fact sheets, flyers, pamphlets, recipe cards, newsletter for mailings)"]
["Chicot",null,null,null,"ANR - Row Crop Protection and Production",null,null,null,null,null,null,null,null,null,null,null,"Journal article"]
["Clark",null,null,null,"ANR - Water Conservation and Quality",null,null,null,null,null,null,null,null,null,null,null,"Nutrition education reinforcement items (e.g. pens, pencils, wallet reference cards, magnets, door hangers, and cups with nutrition messages)"]
["Clay",null,"Action Plans",null,"ANR - Wildlife Conservation and Control",null,null,null,null,null,null,null,null,null,null,null,"Point-of-sale or distribution signage (e.g. displays or window clings in retail stores)"]
["Cleburne",null,"ANR Comprehensive Action Plan",null,"CPED - Ballot Issues Education & Voter Education",null,null,null,null,null,null,null,null,null,null,null,"Radio interview"]
["Cleveland",null,"CPED",null,"CPED - Business and Workforce Development",null,null,null,null,null,null,null,null,null,null,null,"Radio public service announcement"]
["Columbia",null,"FCS Health and Wellness",null,"CPED - Leadership, Community, & Regional Development",null,null,null,null,null,null,null,null,null,null,null,"Site-level assets (e.g., posters, banners, a-frames, displays)"]
["Conway",null,"FCS Family Life",null,"CPED - Public Policy Emerging Issues",null,null,null,null,null,null,null,null,null,null,null,"Social media (e.g. Facebook, Twitter, Pinterest, and blogs)"]
["Craighead",null,"FCS Nutrition",null,"FCS - Community Education, Leadership, and Outreach",null,null,null,null,null,null,null,null,null,null,null,"Software application "]
["Crawford",null,"FCS Food Safety",null,"FCS - EFNEP",null,null,null,null,null,null,null,null,null,null,null,"Television interview"]
["Crittenden",null,"FCS Extnsion Homemakers",null,"FCS -  Family Life",null,null,null,null,null,null,null,null,null,null,null,"TV puvlic service announcements"]
["Cross",null,"FCS Financial Resource Management",null,"FCS - Financial Resource Management",null,null,null,null,null,null,null,null,null,null,null,"Videos (includes CD, DVD, USB, etc.)"]
["Dallas",null,"4-H Agriscience: Poultry",null,"FCS - Food Safety and Food Preservation",null,null,null,null,null,null,null,null,null,null,null,"Videos (includes YouTube)"]
["Desha",null,"4-H Animal Science: Equine Science",null,"FCS - Foods & Nutrition Education",null,null,null,null,null,null,null,null,null,null,null,"Websites"]
["Drew",null,"4-H Outdoor Skills",null,"FCS - Health and Wellness",null,null,null,null,null,null,null,null,null,null,null,"Other, please specify in \"Description\" column"]
["Faulkner",null,"4-H Youth Development Civic Engagement and Leadership",null,"4-H - Agriscience"]
["Franklin",null,"4-H Youth Development Healthy Living",null,"4-H - Civic Engagement/Leadership"]
["Fulton",null,"4-H Youth Development STEM",null,"4-H - Healthy Living"]
["Garland",null,"4-H Youth Development Wildlife and Natural Resources",null,"4-H - Outdoor Skills"]
["Grant",null,null,null,"4-H - STEM"]
["Greene"]
["Hempstead"]
["Hot Spring"]
["Howard"]
["Independence"]
["Izard"]
["Jackson"]
["Jefferson"]
["Johnson"]
["Lafayette"]
["Lawrence"]
["Lee"]
["Lincoln"]
["Little River"]
["Logan"]
["Lonoke"]
["Madison"]
["Marion"]
["Miller"]
["Mississippi"]
["Monroe"]
["Montgomery"]
["Nevada"]
["Newton"]
["Ouachita"]
["Perry"]
["Phillips"]
["Pike"]
["Poinsett"]
["Polk"]
["Pope"]
["Prairie"]
["Pulaski"]
["Randolph"]
["Saline"]
["Scott"]
["Searcy"]
["Sebastian"]
["Sevier"]
["Sharp"]
["St. Francis"]
["Stone"]
["Union"]
["Van Buren"]
["Washington"]
["White"]
["Woodruff"]
["Yell"]
["Arkansas (State)"]